Cogmind - Beta 14 *** ADVENTURER MODE // 2025.05.05 @ 07:37:01 Player: Tisa Result: Self-destructed Performance ------------- Evolutions (1) 500 Regions Visited (2) 400 Robots Destroyed (36) 180 Value Destroyed (1030) 1030 Prototype IDs (0) 0 Alien Tech Used (0) 0 Bonus (0) 0 TOTAL SCORE: 2110 Bonus ------- None Cogmind --------- Core Integrity 185/400 Matter 140/300 Energy 265/265 System Corruption 0% Temperature Cool (0) Movement Core (200) Ox3 Location -9/Materials Parts ------- > --- POWER (1) -------- Improved Ion Engine > --- PROPULSION (4) --- (None) > --- UTILITY (2) ------ Heat Sink Power Shielding > --- WEAPON (2) ------- Mini Grenade Launcher > --- INVENTORY (5) ---- Light Ion Engine Flight Unit Flight Unit Beam Rifle Peak State ------------ > --- POWER ------------ Improved Ion Engine > --- PROPULSION ------- Aluminum Leg Aluminum Leg Aluminum Leg Aluminum Leg > --- UTILITY ---------- Heat Sink Power Shielding > --- WEAPON ----------- Particle Gun Particle Gun > --- INVENTORY -------- Wheel Beam Rifle [Rating: 12] Favorites ----------- Power Improved Ion Engine Engine Improved Ion Engine Propulsion Aluminum Leg Leg Aluminum Leg Hover Unit Hover Unit Utility Power Shielding Device Heat Sink Protection Power Shielding Weapon Particle Gun Energy Gun Particle Gun Ballistic Gun Assault Rifle Launcher Mini Grenade Launcher Build | -11 -10 -9 ------- Run | Yrd Mat Mat Slots Evolved 2 | . . 2 Power . | . . . Propulsion 2 | . . 2 Utility . | . . . Weapon . | . . . Parts Attached 28 | 7 1 20 Power 5 | 2 . 3 Engine 5 | 2 . 3 Core . | . . . Reactor . | . . . Propulsion 10 | 2 . 8 Treads . | . . . Leg 6 | 2 . 4 Wheel . | . . . Hover 4 | . . 4 Flight . | . . . Utility 4 | 1 1 2 Device 2 | 1 . 1 Storage . | . . . Processor . | . . . Hackware . | . . . Protection 2 | . 1 1 Artifact . | . . . Weapon 9 | 2 . 7 Energy Gun 4 | . . 4 Energy Cannon . | . . . Ballistic Gun 4 | 2 . 2 Ballistic Cannon . | . . . Launcher 1 | . . 1 Special Weapon . | . . . Impact Weapon . | . . . Slashing Weapon . | . . . Piercing Weapon . | . . . Special Melee Weapon . | . . . Unidentified Prototypes . | . . . Parts Lost 9 | . . 9 Power . | . . . Propulsion 6 | . . 6 Utility 1 | . . 1 Weapon 2 | . . 2 Highest Loss Streak 3 | . . 3 To Critical Strikes . | . . . Average Slot Usage (%) 82 | . 88 82 Engine 11 | . 14 11 Leg 28 | . 28 28 Hover 1 | . . 2 Device 9 | . 14 9 Protection 10 | . 3 11 Energy Gun 13 | . . 15 Ballistic Gun 5 | . 28 1 Launcher 1 | . . 1 Peak Build Rating 12 | 6 7 12 Average Rating 9 | 3 6 10 On Entrance 4 | . 6 7 Naked Turns . | . . . Heaviest Build 15 | 9 10 15 Greatest Support 40 | 20 20 40 Greatest Overweight (x) 4 | . . 4 Average Overweight (x) . | . . . Largest Inventory Capacity 5 | 5 5 5 Average Capacity 5 | 5 5 5 Most Carried 5 | 4 4 5 Average Carried 3 | 2 3 3 Final Capacity 5 | 5 5 5 Final Carried 4 | 3 4 4 Class Distribution -------------------- 51% | Scavenger-Mutant 48% | Mutant Dominant Class ---------------- Mutant | -10/Materials Scavenger-Mutant | -9/Materials Resources | -11 -10 -9 ----------- Run | Yrd Mat Mat Matter Collected 520 | 294 . 226 Remotely . | . . . Salvage Created 1138 | 58 . 1080 Parts 64 | 7 . 57 Haulers Intercepted . | . . . Recyclers Shooed . | . . . Parts Field Recycled . | . . . Retrieved Matter . | . . . Parts Self-Destructed . | . . . Prevented . | . . . Kills | -11 -10 -9 ------- Run | Yrd Mat Mat Combat Hostiles Destroyed 28 | 1 . 27 Guns 27 | 1 . 26 AOE 1 | . . 1 Classes Destroyed 10 | 2 . 8 Worker 1 | . . 1 Tunneler 1 | 1 . . Recycler 1 | . . 1 Operator 1 | . . 1 Watcher 4 | . . 4 Swarmer 6 | . . 6 Grunt 13 | 1 . 12 Brawler 1 | . . 1 Duelist 1 | . . 1 Sentry 7 | . . 7 Best Kill Streak 8 | 2 . 8 Combat Bots Only 8 | 1 . 8 Max Kills in Single Turn 1 | 1 . 1 Gunslinging . | . . . Exploded 1 | . . 1 Melee . | . . . Uniques/NPCs Destroyed . | . . . Combat | -11 -10 -9 -------- Run | Yrd Mat Mat Hostile Shots Fired 152 | 4 . 148 Missed 37 | . . 37 Damage Taken 1135 | 32 . 1103 Core 215 | . . 215 Absorbed by Shields . | . . . Redirected to Shielding 15 | . . 15 Ignored by Resistances 336 | 9 . 327 Core Remaining (%) 100 | 100 100 . Volleys Fired 112 | 6 . 106 Largest 2 | 2 . 2 Hottest 130 | 40 . 130 Shots Fired 159 | 12 . 147 Gun 143 | 12 . 131 Cannon . | . . . Launcher 16 | . . 16 Special . | . . . Kinetic 28 | 12 . 16 Thermal 115 | . . 115 Explosive 16 | . . 16 Electromagnetic . | . . . Robot Hit Streak 25 | 8 . 25 Robot Miss Streak 3 | 2 . 3 Penetration Max . | . . . Secondary Targets 1 | . . 1 Max Gunslinging Chain 1 | . . 1 Shots Hit Robots 132 | 8 . 124 Core Hits 56 | 3 . 53 Critical Kills . | . . . Critical Parts Destroyed . | . . . Critical Strikes 3 | . . 3 Burn 3 | . . 3 Melee Attacks . | . . . Impact . | . . . Slashing . | . . . Piercing . | . . . Sneak Attacks . | . . . Combat Hostiles . | . . . Follow-up Attacks . | . . . Damage Inflicted 2273 | 80 . 2193 Guns 1786 | 80 . 1706 Cannons . | . . . Explosions 487 | . . 487 Melee . | . . . Ramming . | . . . Kinetic 335 | 80 . 255 Thermal 1451 | . . 1451 Explosive 487 | . . 487 Electromagnetic . | . . . Impact . | . . . Slashing . | . . . Piercing . | . . . Highest Corruption . | . . . Average Corruption . | . . . Corruption Purged . | . . . Corruption Blocked . | . . . Overload Shots . | . . . Overflow Damage 28 | . . 28 Projectiles . | . . . Explosions 28 | . . 28 Melee . | . . . Knockbacks . | . . . Impact . | . . . Kinetic . | . . . Secondary . | . . . Self-Inflicted Damage 56 | . . 56 Shots 2 | . . 2 Rammed . | . . . Targets Rammed . | . . . Kicked . | . . . Crushed . | . . . Highest Temperature 436 | 12 . 436 Average Temperature 138 | 7 . 140 Received Heat Transfer 507 | 24 . 483 Effects 7 | . . 7 Shutdowns 2 | . . 2 Interference 2 | . . 2 Short Circuit 1 | . . 1 Damage (minor) 2 | . . 2 Siege Activations . | . . . Robots Corrupted . | . . . Combat Hostiles . | . . . Parts Fried . | . . . Impact Corruptions . | . . . Robots Melted . | . . . Combat Hostiles . | . . . Parts Melted 9 | . . 9 Heat Transferred 3774 | . . 3774 Parts Sabotaged . | . . . Parts Stolen . | . . . Parts Stripped . | . . . Power Chain Reactions . | . . . Alert | -11 -10 -9 ------- Run | Yrd Mat Mat Peak Influence 358 | 25 65 358 Initial 23 | . 13 23 Average 156 | 5 17 191 Maximum Alert Level 1 | . . 1 Low Security (%) 68 | 100 100 60 Level 1 31 | . . 39 Level 2 . | . . . Level 3 . | . . . Level 4 . | . . . Level 5 . | . . . High Security . | . . . Max Security . | . . . Squads Dispatched 2 | . . 2 Investigation . | . . . Extermination . | . . . Reinforcement 2 | . . 2 Assault . | . . . Garrison . | . . . Intercept . | . . . Searches Triggered . | . . . Construction Impeded . | . . . Haulers Reinforced . | . . . Active Scanning Responses . | . . . Cargo Convoy Interrupts . | . . . Stealth | -11 -10 -9 --------- Run | Yrd Mat Mat Distress Signals 2 | . 1 1 Communications Jammed . | . . . Distress Signals . | . . . Times Spotted 39 | 1 3 35 Peak Tracking Total 6 | 1 6 5 Tactical Retreats 3 | . 1 2 Traps | -11 -10 -9 ------- Run | Yrd Mat Mat Traps Triggered 2 | . . 2 Indirectly . | . . . Trap Hack Attempts . | . . . Triggered . | . . . Disarmed . | . . . Reprogrammed . | . . . Reused . | . . . Traps Extracted . | . . . Installed . | . . . Triggered . | . . . Machines | -11 -10 -9 ---------- Run | Yrd Mat Mat Machines Disabled 1 | . . 1 Max in Single Turn 1 | . . 1 Machines Repaired . | . . . Machines Dismantled . | . . . Machines Sabotaged . | . . . Overloaded Fab Kills . | . . . Hacking | -11 -10 -9 --------- Run | Yrd Mat Mat Machines Accessed 8 | . 4 4 Terminals 6 | . 3 3 Fabricators . | . . . Repair Stations . | . . . Recycling Units 1 | . 1 . Scanalyzers 1 | . . 1 Garrison Access . | . . . Total Hacks 27 | . 10 17 Successful 15 | . 6 9 Failed 12 | . 4 8 Catastrophic 2 | . . 2 Database Lockouts . | . . . Manual . | . . . Terminals 20 | . 8 12 Fabricators . | . . . Repair Stations . | . . . Recycling Units 2 | . 2 . Scanalyzers 5 | . . 5 Garrison Access . | . . . Terminal Hacks 11 | . 6 5 Record 6 | . 4 2 Scanalyzer Index 1 | . 1 . Alert Level 1 | . . 1 Unreport Threat 2 | . . 2 Surveillance Status 1 | . 1 . Fabricator Hacks . | . . . Repair Station Hacks . | . . . Recycling Unit Hacks . | . . . Scanalyzer 4 | . . 4 Insert Component 2 | . . 2 Analyze 2 | . . 2 Garrison Access Hacks . | . . . Unauthorized Hacks . | . . . Terminals . | . . . Fabricators . | . . . Repair Stations . | . . . Recycling Units . | . . . Scanalyzers . | . . . Garrison Access . | . . . Data Cores Recovered . | . . . Used . | . . . Hacking Detections 7 | . 3 4 Full Trace Events . | . . . Feedback Events . | . . . Feedback Blocked . | . . . Robot Schematics Acquired . | . . . Robots Built . | . . . Authchips . | . . . Time . | . . . Total Robot Build Rating . | . . . Part Schematics Acquired 2 | . . 2 Parts Built . | . . . Authchips . | . . . Time . | . . . Total Part Build Rating . | . . . Parts Repaired . | . . . Time . | . . . Parts Recycled . | . . . Recycled Matter . | . . . Retrieved Matter . | . . . Retrieved Components . | . . . Parts Scanalyzed 2 | . . 2 Part Schematics Acquired 2 | . . 2 Parts Damaged . | . . . Bothacking | -11 -10 -9 ------------ Run | Yrd Mat Mat Used RIF Installer . | . . . Robots Hacked . | . . . Non-combat . | . . . Combat . | . . . Robot Hacks Applied . | . . . Relay Couplers Released . | . . . Fabnet Peak Effective % . | . . . Robots Rewired . | . . . Allies Hacked . | . . . Hacks Repelled . | . . . Allies | -11 -10 -9 -------- Run | Yrd Mat Mat Total Allies . | . . . Largest Group . | . . . Highest-Rated Group . | . . . Highest-Rated Ally . | . . . Total Orders . | . . . Ally Attacks . | . . . Total Damage . | . . . Kills . | . . . Allies Corrupted . | . . . Allies Melted . | . . . Intel | -11 -10 -9 ------- Run | Yrd Mat Mat Robot Analysis Total . | . . . Derelict Logs Recovered . | . . . Drone Launches . | . . . Drone Recoveries . | . . . Exploration | -11 -10 -9 ------------- Run | Yrd Mat Mat Turns Passed 1782 | 119 232 1431 Spaces Moved 1151 | 91 182 878 Core 85 | 32 . 53 Treads . | . . . Legs 938 | 59 182 697 Wheels . | . . . Hover 128 | . . 128 Flight . | . . . Fastest Speed 50 | 50 120 52 Average Speed 116 | 95 120 118 Slowest Speed 250 | 120 120 250 Overloaded Moves . | . . . Propulsion Burnouts . | . . . Robots Hopped . | . . . Cave-ins Triggered . | . . . Exploration Rate (%) 27 | 9 24 48 Regions Visited 2 Branch Regions . Pre-discovered Areas . | . . . Known Exits Taken . | . . . Unknown Exits Taken 2 | 1 1 . Scrap Searched . | . . . Spaces Dug . | . . . Terrain Destroyed 80 | . . 80 Melee . | . . . Projectile . | . . . AOE 80 | . . 80 Terrain Rammed . | . . . Walls Destroyed . | . . . Machines Disabled . | . . . Actions | -11 -10 -9 --------- Run | Yrd Mat Mat Total 1440 | 112 195 1133 Wait 97 | . 11 86 Move 1149 | 90 181 878 Hop . | . . . Pick Up 35 | 9 2 24 Fast Attach . | . . . Attach 24 | 6 1 17 Detach 1 | . . 1 Swap 4 | 1 . 3 Drop 18 | . . 18 Fire 112 | 6 . 106 Melee . | . . . Ram . | . . . Kick . | . . . Crush . | . . . Escape Stasis . | . . . Rewire . | . . . Trap . | . . . Miscellaneous . | . . . Route ------- -11/Scrapyard -10/Materials (discovered 2 exits: *Mat / [*Min]) -9/Materials (discovered 2 exits: [*Mat] / [*Min]) History --------- Turn | Location | Event 2 | -11/Scrapyard | Met Revision 17 80 | -11/Scrapyard | Discovered new exit (range 8) 120 | -11/Scrapyard | Entered Materials 190 | -10/Materials | Discovered new exit (range 6) 323 | -10/Materials | Build established: Mutant 334 | -10/Materials | Discovered new exit (range 3) 352 | -10/Materials | Entered another Materials area 352 | -9/Materials | Evolved 2 slots: Propulsion x2 734 | -9/Materials | Destroyed 8 combat bots 738 | -9/Materials | Lost 3 parts (2n1u) 784 | -9/Materials | Discovered new exit (range 11) 1027 | -9/Materials | Build established: Scavenger-Mutant 1561 | -9/Materials | Discovered new exit (range 5) 1683 | -9/Materials | Core integrity fell below 50% 1783 | -9/Materials | Self-destructed Last Messages --------------- Particle Gun destroyed. Destroyed Particle Gun. K-01 Serf collects debris. Destroyed Lgt. Ion Engine. W-16 Scout destroyed. K-01 Serf collects debris. Acquired Hover Unit. The unstable cave ceiling collapses. K-01 Serf collects debris. The unstable cave ceiling collapses. O-16 Technician: "IFF HANDSHAKE FAILED. SECURING TERMINAL." The unstable cave ceiling collapses. Destroyed Datajack. O-16 Technician distress signal alerts nearby ally. O-16 Technician destroyed. Hover Unit destroyed. Y-45 Defender destroyed. The unstable cave ceiling collapses. Map ----- +----------------------------------------------------+ | ????????????????????????????????????? | | ????????????????????????????????????? | | ????????????????????????????????????? | | ????????????????????????????????????? | | ????????????????????????????????????? | | ????????????????????????????????????? | | ????????????????????????????????????? | | ????????????????????????????????????? | | ????????????????????????????????????? | | ????????????????????????????????????? | | ??########??????????????????????????? | | ??# ???????????????????????????? | | ??# #???????????????????????????? | | ??# #???????????????????????????? | | ??# #???????????????????????????? | | ??# #???????????????????????????? | | ??# ########????????????????????? | | ??# ## #????????????????????? | | ??# ## #????????????????????? | | ?## ## #????????????????????? | | ## # #????????????????????? | | # # | #????????????????????? | | # #????????????????????? | | #????????????????????? | | # #????????????????????? | | @ #????????????????????? | | #????????????????????? | | ## # ### #????????????????????? | | ?# # [#????????????????????? | | ?## #######????????????????????? | | ?## #??????????????????????????? | | ?# # #??????????????????????????? | | ## ##?????????????????????????? | | # # # #?????????????????????????? | | ## ###?????????????????????????? | | ?# #??????????????????????????? | | ?# ##??????????????????????????? | | ?# #???????????????????????????? | | ?## #??????????????????????????## | | ??### ###?????????????????????????? | | ????# #????????????????????????????? | | ????# #?????????????????????????????" | | ????# #?????????????????????????????? | | ??### ###??????????????????#? ??????? | | ??# #####+###+#????????# ##### | | ??# T" #????????# + | | ??# " #???????????####""" | | ??# #??????????????#""" | | ??# ######### #??????????????#""" | | ??## ##########????????????????# | +----------------------------------------------------+ Best States ------------- Heat Dissipation 38 Energy Generation 12 Energy Capacity 265 Matter Stores 300 Matter Capacity 300 Sight Range 16 Terrain Scan Density 10 Armor Coverage 150 Resistance: KI 20 Resistance: TH 20 Resistance: EX 20 Resistance: EM 20 Resistance: I 20 Resistance: S 20 Resistance: P 20 Power Shielding 33 Evasion (%) 55 Offensive Hacking 10 Item Schematics ----------------- Flight Unit | -9/Materials | Scanalyzed Imp. Hover Unit | -9/Materials | Scanalyzed Robot Schematics ------------------ None Fabricated ------------ Nothing Alien Tech Used ----------------- None Achievements -------------- Uninvited Guest Challenges ------------ None Game ------ Seed WeaponsRecoilMatter Manual? 0 Play Time 00:19:47 Cumulative 0.7 hours Start 2025.05.05 @ 07:18:09 End 2025.05.05 @ 07:37:01 Sessions 1 Manual Loads 0 Difficulty Adventurer Special Mode None Game No. 2 Rogue 0 Adventurer 2 Explorer 0 Win Type - Total 0 Types 0/0/0/0/0/0/0/0/0 Lore% 1 Gallery% 3 Achievement% 2 Wizard Run 0 Options --------- Layout 1 ASCII 0 Keyboard 0 Movement Mouse Keybinds 0 Fullscreen 1 Font 24/Smallcaps Map View 50x35 Zoom Use 0% Tactical HUD 0 Map Filters NONE Filters NONE Steam 1 RUN: 80e15075-a131-429b-8663-fd695bd64763